Cogmind - Beta 14 @@@ ROGUE MODE // 2025.03.07 @ 14:50:04 Player: Bbenedict8 Result: Destroyed by D-53 Grenadier with Mini Grenade Launcher Performance ------------- Evolutions (0) 0 Regions Visited (2) 400 Robots Destroyed (11) 55 Value Destroyed (100) 100 Prototype IDs (0) 0 Alien Tech Used (0) 0 Bonus (0) 0 TOTAL SCORE: 555 Bonus ------- None Cogmind --------- Core Integrity 0/250 Matter 300/300 Energy 100/100 System Corruption 1% Temperature Cool (0) Movement Core (350) Ox6 Location -10/Mines Parts ------- > --- POWER (1) -------- (None) > --- PROPULSION (2) --- (None) > --- UTILITY (2) ------ Large Storage Unit Signal Interpreter > --- WEAPON (2) ------- (None) > --- INVENTORY (15) --- Light Ion Engine Light Ion Engine Small Matter Pod (50) ECM Suite Small Laser Assault Rifle Light Assault Rifle Datajack Datajack Peak State ------------ > --- POWER ------------ Ion Engine > --- PROPULSION ------- Light Treads Light Treads > --- UTILITY ---------- Large Storage Unit ECM Suite > --- WEAPON ----------- Small Laser Assault Rifle > --- INVENTORY -------- Light Ion Engine Light Ion Engine Small Matter Pod Light Assault Rifle Grenade Launcher [Rating: 7] Favorites ----------- Power Ion Engine Engine Ion Engine Propulsion Light Treads Treads Light Treads Wheel Compact Wheel Utility Large Storage Unit Device ECM Suite Storage Large Storage Unit Processor Signal Interpreter Weapon Assault Rifle Energy Gun EM Pulse Gun Ballistic Gun Assault Rifle Launcher Grenade Launcher Special Melee Weapon Datajack Build | -11 -10 -10 ------- Run | Yrd Mat Min Slots Evolved . | . . . Power . | . . . Propulsion . | . . . Utility . | . . . Weapon . | . . . Parts Attached 17 | 9 6 2 Power 2 | 2 . . Engine 2 | 2 . . Core . | . . . Reactor . | . . . Propulsion 3 | 3 . . Treads 2 | 2 . . Leg . | . . . Wheel 1 | 1 . . Hover . | . . . Flight . | . . . Utility 4 | 1 3 . Device 1 | . 1 . Storage 2 | 1 1 . Processor 1 | . 1 . Hackware . | . . . Protection . | . . . Artifact . | . . . Weapon 8 | 3 3 2 Energy Gun 2 | 1 1 . Energy Cannon . | . . . Ballistic Gun 3 | 2 1 . Ballistic Cannon . | . . . Launcher 1 | . . 1 Special Weapon . | . . . Impact Weapon . | . . . Slashing Weapon . | . . . Piercing Weapon . | . . . Special Melee Weapon 2 | . 1 1 Unidentified Prototypes . | . . . Parts Lost 5 | . . 5 Power 1 | . . 1 Propulsion 2 | . . 2 Utility . | . . . Weapon 2 | . . 2 Highest Loss Streak 5 | . . 5 To Critical Strikes . | . . . Average Slot Usage (%) 95 | . 94 97 Engine 13 | . 14 13 Treads 27 | . 28 26 Device 6 | . 9 . Storage 14 | . 14 14 Processor 3 | . . 14 Energy Gun 13 | . 14 13 Ballistic Gun 8 | . 11 . Launcher 2 | . . 10 Special Melee Weapon 2 | . 2 3 Peak Build Rating 7 | 6 7 7 Average Rating 6 | 4 6 6 On Entrance 4 | . 6 7 Naked Turns . | . . . Heaviest Build 31 | 13 31 30 Greatest Support 40 | 20 40 40 Greatest Overweight (x) 6 | . . 6 Average Overweight (x) . | . . . Largest Inventory Capacity 15 | 8 15 15 Average Capacity 13 | 6 14 15 Most Carried 9 | 4 9 9 Average Carried 6 | 1 7 9 Final Capacity 15 | 8 15 15 Final Carried 9 | 4 9 9 Class Distribution -------------------- 100% | Mutant Dominant Class ---------------- Mutant | -10/Materials Mutant | -10/Mines Resources | -11 -10 -10 ----------- Run | Yrd Mat Min Matter Collected 475 | 251 131 93 Remotely . | . . . Salvage Created 271 | 61 160 50 Parts 24 | 7 9 8 Haulers Intercepted 1 | . 1 . Recyclers Shooed 4 | 1 2 1 Parts Field Recycled . | . . . Retrieved Matter . | . . . Parts Self-Destructed . | . . . Prevented . | . . . Kills | -11 -10 -10 ------- Run | Yrd Mat Min Combat Hostiles Destroyed 3 | . 1 2 Guns 3 | . 1 2 Classes Destroyed 7 | 2 4 1 Worker 2 | 2 . . Builder 1 | . 1 . Tunneler 3 | 1 . 2 Hauler 1 | . 1 . Watcher 1 | . 1 . Swarmer 2 | . . 2 Grunt 1 | . 1 . Best Kill Streak 2 | 2 2 2 Combat Bots Only 2 | . 1 2 Max Kills in Single Turn 2 | 1 1 2 Gunslinging . | . . . Exploded . | . . . Melee . | . . . Uniques/NPCs Destroyed . | . . . Combat | -11 -10 -10 -------- Run | Yrd Mat Min Hostile Shots Fired 35 | . 3 32 Missed 6 | . 1 5 Damage Taken 774 | . 24 750 Core 259 | . . 259 Absorbed by Shields . | . . . Core Remaining (%) 100 | 100 . . Volleys Fired 33 | 8 9 16 Largest 2 | 2 2 2 Hottest 70 | 60 60 70 Shots Fired 51 | 16 18 17 Gun 50 | 16 18 16 Cannon . | . . . Launcher 1 | . . 1 Special . | . . . Kinetic 17 | 8 9 . Thermal 8 | 8 . . Explosive 1 | . . 1 Electromagnetic 25 | . 9 16 Robot Hit Streak 4 | 3 4 2 Robot Miss Streak 4 | 4 2 3 Penetration Max . | . . . Secondary Targets . | . . . Shots Hit Robots 29 | 7 16 6 Core Hits 13 | 3 5 5 Critical Kills . | . . . Critical Parts Destroyed . | . . . Critical Strikes . | . . . Melee Attacks 7 | . 5 2 Impact . | . . . Slashing . | . . . Piercing . | . . . Sneak Attacks 5 | . 5 . Combat Hostiles . | . . . Follow-up Attacks . | . . . Damage Inflicted 487 | 89 211 187 Guns 311 | 89 164 58 Cannons . | . . . Explosions 176 | . 47 129 Melee . | . . . Ramming . | . . . Kinetic 101 | 42 59 . Thermal 94 | 47 47 . Explosive 129 | . . 129 Electromagnetic 163 | . 105 58 Impact . | . . . Slashing . | . . . Piercing . | . . . Highest Corruption 1 | . 1 1 Average Corruption 1 | . 1 1 Corruption Purged . | . . . Corruption Blocked . | . . . Effects 3 | . . 3 Message Errors 2 | . . 2 Alerts 1 | . . 1 Overload Shots . | . . . Overflow Damage 11 | . . 11 Projectiles . | . . . Explosions 11 | . . 11 Melee . | . . . Knockbacks . | . . . Impact . | . . . Kinetic . | . . . Secondary . | . . . Self-Inflicted Damage . | . . . Shots . | . . . Rammed . | . . . Targets Rammed . | . . . Kicked . | . . . Crushed . | . . . Highest Temperature 12 | . 12 9 Average Temperature 8 | . 9 7 Received Heat Transfer 12 | . 12 . Siege Activations . | . . . Robots Corrupted . | . . . Combat Hostiles . | . . . Parts Fried . | . . . Impact Corruptions . | . . . Robots Melted . | . . . Combat Hostiles . | . . . Parts Melted . | . . . Heat Transferred 150 | 100 50 . Parts Sabotaged . | . . . Parts Stolen . | . . . Parts Stripped . | . . . Power Chain Reactions 1 | . 1 . Alert | -11 -10 -10 ------- Run | Yrd Mat Min Peak Influence 84 | 15 58 84 Initial 19 | . 9 19 Average 36 | 2 26 76 Maximum Alert Level . | . . . Low Security (%) 100 | 100 100 100 Level 1 . | . . . Level 2 . | . . . Level 3 . | . . . Level 4 . | . . . Level 5 . | . . . High Security . | . . . Max Security . | . . . Squads Dispatched 1 | . 1 . Investigation . | . . . Extermination . | . . . Reinforcement 1 | . 1 . Assault . | . . . Garrison . | . . . Intercept . | . . . Searches Triggered . | . . . Construction Impeded . | . . . Haulers Reinforced . | . . . Active Scanning Responses . | . . . Cargo Convoy Interrupts . | . . . Stealth | -11 -10 -10 --------- Run | Yrd Mat Min Distress Signals . | . . . Communications Jammed . | . . . Distress Signals . | . . . Times Spotted 12 | . 5 7 Peak Tracking Total 4 | . 2 4 Tactical Retreats . | . . . Traps | -11 -10 -10 ------- Run | Yrd Mat Min Traps Triggered 1 | . 1 . Indirectly . | . . . Trap Hack Attempts . | . . . Triggered . | . . . Disarmed . | . . . Reprogrammed . | . . . Reused . | . . . Traps Extracted . | . . . Installed . | . . . Triggered . | . . . Machines | -11 -10 -10 ---------- Run | Yrd Mat Min Machines Disabled . | . . . Max in Single Turn . | . . . Machines Repaired . | . . . Machines Dismantled . | . . . Machines Sabotaged . | . . . Overloaded Fab Kills . | . . . Hacking | -11 -10 -10 --------- Run | Yrd Mat Min Machines Accessed 2 | . 2 . Terminals 2 | . 2 . Fabricators . | . . . Repair Stations . | . . . Recycling Units . | . . . Scanalyzers . | . . . Garrison Access . | . . . Total Hacks 5 | . 5 . Successful 2 | . 2 . Failed 3 | . 3 . Catastrophic 1 | . 1 . Database Lockouts . | . . . Manual 3 | . 3 . Terminals 5 | . 5 . Fabricators . | . . . Repair Stations . | . . . Recycling Units . | . . . Scanalyzers . | . . . Garrison Access . | . . . Terminal Hacks 2 | . 2 . Record 1 | . 1 . Emergency Access Points 1 | . 1 . Fabricator Hacks . | . . . Repair Station Hacks . | . . . Recycling Unit Hacks . | . . . Scanalyzer . | . . . Garrison Access Hacks . | . . . Unauthorized Hacks . | . . . Terminals . | . . . Fabricators . | . . . Repair Stations . | . . . Recycling Units . | . . . Scanalyzers . | . . . Garrison Access . | . . . Data Cores Recovered . | . . . Used . | . . . Hacking Detections 2 | . 2 . Full Trace Events . | . . . Feedback Events . | . . . Feedback Blocked . | . . . Robot Schematics Acquired . | . . . Robots Built . | . . . Authchips . | . . . Time . | . . . Total Robot Build Rating . | . . . Part Schematics Acquired . | . . . Parts Built . | . . . Authchips . | . . . Time . | . . . Total Part Build Rating . | . . . Parts Repaired . | . . . Time . | . . . Parts Recycled . | . . . Recycled Matter . | . . . Retrieved Matter . | . . . Retrieved Components . | . . . Parts Scanalyzed . | . . . Part Schematics Acquired . | . . . Parts Damaged . | . . . Bothacking | -11 -10 -10 ------------ Run | Yrd Mat Min Used RIF Installer . | . . . Robots Hacked 2 | . 2 . Non-combat 2 | . 2 . Combat . | . . . Robot Hacks Applied 4 | . 4 . parse_system 1 | . 1 . no_distress 2 | . 2 . find_recycling 1 | . 1 . Relay Couplers Released . | . . . Fabnet Peak Effective % . | . . . Robots Rewired . | . . . Allies Hacked . | . . . Hacks Repelled . | . . . Allies | -11 -10 -10 -------- Run | Yrd Mat Min Total Allies . | . . . Largest Group . | . . . Highest-Rated Group . | . . . Highest-Rated Ally . | . . . Total Orders . | . . . Ally Attacks . | . . . Total Damage . | . . . Kills . | . . . Allies Corrupted . | . . . Allies Melted . | . . . Intel | -11 -10 -10 ------- Run | Yrd Mat Min Robot Analysis Total . | . . . Derelict Logs Recovered . | . . . Drone Launches . | . . . Drone Recoveries . | . . . Exploration | -11 -10 -10 ------------- Run | Yrd Mat Min Turns Passed 1039 | 116 670 253 Spaces Moved 548 | 53 370 125 Core 7 | 6 . 1 Treads 539 | 45 370 124 Legs . | . . . Wheels 2 | 2 . . Hover . | . . . Flight . | . . . Fastest Speed 50 | 50 160 160 Average Speed 158 | 145 160 161 Slowest Speed 350 | 160 160 350 Overloaded Moves . | . . . Propulsion Burnouts . | . . . Robots Hopped . | . . . Cave-ins Triggered . | . . . Exploration Rate (%) 27 | 5 57 21 Regions Visited 2 Branch Regions 1 Pre-discovered Areas . | . . . Known Exits Taken 1 | . 1 . Unknown Exits Taken 1 | 1 . . Scrap Searched 1 | . . 1 Spaces Dug . | . . . Terrain Destroyed 10 | . 3 7 Melee . | . . . Projectile . | . . . AOE 10 | . 3 7 Terrain Rammed . | . . . Walls Destroyed . | . . . Machines Disabled . | . . . Actions | -11 -10 -10 --------- Run | Yrd Mat Min Total 655 | 72 426 157 Wait 39 | . 27 12 Move 546 | 52 369 125 Hop . | . . . Pick Up 10 | 2 8 . Fast Attach 7 | 7 . . Attach 1 | . 1 . Detach . | . . . Swap 9 | 2 5 2 Drop 3 | 1 2 . Fire 33 | 8 9 16 Melee 7 | . 5 2 Ram . | . . . Kick . | . . . Crush . | . . . Escape Stasis . | . . . Rewire . | . . . Trap . | . . . Miscellaneous . | . . . Route ------- -11/Scrapyard -10/Materials (discovered 2 exits: *Mat / *Min) -10/Mines (discovered 3 exits: *Mat x2 / *Exi) History --------- Turn | Location | Event 11 | -11/Scrapyard | Discovered new exit (range 16) 117 | -11/Scrapyard | Entered Materials 303 | -10/Materials | Build established: Mutant 311 | -10/Materials | Discovered new exit (range 7) 755 | -10/Materials | Discovered new exit (range 7) 786 | -10/Materials | Identified exit to Mines 787 | -10/Materials | Entered Mines 834 | -10/Mines | Discovered new exit (range 7) 878 | -10/Mines | Discovered new exit (range 12) 895 | -10/Mines | Identified exit to Materials 955 | -10/Mines | Deemed a non-threat by the Exiles lab entrance 955 | -10/Mines | Discovered new exit (range 5) 960 | -10/Mines | Identified exit to Exiles 1003 | -10/Mines | Assembled infested the area 1036 | -10/Mines | Core integrity fell below 50% 1040 | -10/Mines | Core integrity fell below 20% 1040 | -10/Mines | Destroyed by D-53 Grenadier with Mini Grenade Launcher Last Messages --------------- 00871_ Acquired 46 matter. 00878_ EXIT=FOUND 00895_ EXIT=IDENTIFIED: MATERIALS 00955_ "No threat detected, you may enter." 00955_ EXIT=FOUND 00960_ EXIT=IDENTIFIED: EXILES 01003_ ALERT: Infestation in the mines, dispatching Demolisher response squad. 01016_ JX5PG5RN=UDR,L NJ9AVLYWMOLVVPCX 01020_ C-30 ARC bursts open, deploying its payload. 01020_ D-53 Grenadier unfolds itself. 01021_ The unstable cave ceiling collapses. 01030_ EM Pulse Gun destroyed. 01031_ The unstable cave ceiling collapses. 01033_ Ion Engine destroyed. 01034_ Grenade Launcher destroyed. 01035_ The unstable cave ceiling collapses. 01035_ Lgt. Treads destroyed. 01036_ The unstable cave ceiling collapses. Map ----- +----------------------------------------------------+ | ???????????????????????????????? | | ???????????????????????????????? | | ???????????????????????????????? | | ???????????????????????????????? | | ???????????????????????????????? | | ???????????????????????????????? | | ???????????????????????????????? | | ???????????????????????????????? | | ???????????????????????????????? | | ???????????????????????????????? | | ???????????????????????????????? | | ???????????????????????????????? | | ?##????????????????????????????? | | ?# ???????????????????????????? | | ?# ???????????????????????????? | | ?? ???????????????????????????? | | ??# ??????????????????????????? | | ??# ??????????????????????????# | | ??# a#????####????????####??? # | | ?## ???## ####????# ## | | ?# #### ##### # | | ?# # | | ?# a #? | | ??# ## ##? | | ???# # #??? ##?? | | ???# >@ d #?????##??? | | ??# d #?????????? | | ??## #?????????? | | ???# ##????#####? | | ???## # #%##?????? ?? | | ????## ####"#??????? ?? | | ?????##### # ##### #??????? ?? | | ?????????# #???????